bitfinex-derivatives/quotes_SOLF0:USTF0_20241206
["timestamp","ask_amount","ask_price","bid_price","bid_amount"]
[1733464060049,2.0903,239.04,238.94,2.12]
[1733464060245,1.3299,239.12,238.96,9.06581103]
[1733464060446,2.12,239.11,238.96,9.06581103]
[1733464060642,2.0899,239.09,238.96,9.06581103]
[1733464061047,2.12,239.11,238.96,9.06581103]
[1733464063548,2.0899,239.09,238.96,9.06581103]
[1733464063740,3.4499,239.12,238.96,9.06581103]
[1733464064244,2.0898,239.1,238.96,9.06581103]
[1733464064549,2.0898,239.1,238.97,1.04587305]
[1733464064744,2.0898,239.1,238.96,9.06581103]
[1733464064944,2.0898,239.1,238.97,1.04587305]
[1733464065147,2.0898,239.1,238.96,9.06581103]
[1733464065351,2.0898,239.1,238.97,1.04586957]
[1733464065545,2.0898,239.1,238.96,9.06581103]
[1733464065848,2.0898,239.1,238.97,1.04586957]
[1733464066149,2.0898,239.1,238.96,9.06581103]
[1733464066349,2.0898,239.1,238.97,1.04585998]
[1733464066549,2.0898,239.1,238.96,9.06581103]
[1733464066550,2.0898,239.1,238.98,1.04585998]
[1733464066751,2.0898,239.1,238.99,2.12]
[1733464067352,2.0897,239.12,239.0,9.06581103]
[1733464067650,2.0897,239.12,239.0,11.71431103]
[1733464068055,9.06581103,239.15,239.0,11.71431103]
[1733464068447,9.06581103,239.15,239.01,1.04579857]
[1733464068648,9.06581103,239.15,239.0,11.71431103]
[1733464069054,9.06581103,239.15,239.01,1.0457933]
[1733464069351,9.06581103,239.15,239.0,11.71431103]
[1733464069546,9.06581103,239.15,239.01,1.04581378]
[1733464069751,2.0895,239.14,239.0,11.71431103]
[1733464069953,2.0895,239.14,239.01,1.04580919]
[1733464070151,2.0895,239.14,239.0,11.71431103]
[1733464070347,2.0895,239.14,239.01,2.71890411]
[1733464070547,2.0895,239.14,239.02,1.04580683]
[1733464070748,2.0895,239.14,239.0,11.71431103]
[1733464070944,2.0895,239.14,239.01,1.04572026]
[1733464071153,2.0895,239.14,239.02,1.04572026]
[1733464071355,2.0895,239.14,239.0,11.71431103]
[1733464071554,2.0895,239.14,239.01,1.04570812]
[1733464071751,2.0895,239.14,239.02,1.04570812]
[1733464071957,2.0895,239.14,239.0,11.71431103]
[1733464072257,2.0895,239.14,239.01,1.04570746]
[1733464072456,2.0895,239.14,239.02,1.04570746]
[1733464072658,2.0895,239.14,239.0,11.71431103]
[1733464072856,2.0895,239.14,239.01,1.04571156]
[1733464073050,2.0895,239.13,239.02,1.04571156]
[1733464073254,2.0895,239.13,239.03,1.2337]
[1733464073561,9.06581103,239.15,239.04,2.12]
[1733464074051,2.0897,239.11,239.04,2.12]
[1733464074451,9.06581103,239.15,239.03,1.2337]
[1733464074950,9.06581103,239.15,239.0,1.306]
[1733464075148,10.32909239,239.14,239.0,1.306]
[1733464075350,10.32909239,239.13,239.0,1.306]
[1733464075649,9.06581103,239.11,238.99,4.20460662]
[1733464075858,2.12,239.1,238.97,3.427]
[1733464076955,2.12,239.1,238.97,1.307]
[1733464077148,2.0904,239.03,238.97,1.307]
[1733464077355,2.12,239.1,238.97,1.307]
[1733464077554,9.06581103,239.07,238.94,1.3071]
[1733464077755,9.06581103,239.07,238.92,4.20945033]
[1733464078055,9.06581103,239.07,238.91,2.12]
[1733464078450,9.06581103,239.07,238.91,6.39530174]
[1733464078648,10.32162922,239.06,238.91,6.39530174]
[1733464078854,2.12,239.05,238.91,6.39530174]
[1733464079749,2.0906,239.01,238.91,6.39530174]
[1733464080859,2.0903,239.04,238.91,6.39530174]
[1733464081757,2.0904,239.03,238.91,6.39530174]
[1733464082760,2.0905,239.02,238.91,6.39530174]
[1733464083055,2.12,239.05,238.91,6.39530174]
[1733464083554,2.0908,238.99,238.91,6.39530174]
[1733464083761,9.06581103,239.01,238.91,4.27530174]
[1733464083965,2.12,239.0,238.9,1.2843]
[1733464084356,2.12,239.0,238.9,5.55876484]
[1733464084855,2.0912,238.94,238.87,0.29363]
[1733464085058,9.06581103,238.98,238.87,0.29363]
[1733464085257,2.12,238.97,238.87,0.29363]
[1733464085458,2.0915,238.91,238.87,0.29363]
[1733464086556,9.06581103,238.95,238.87,0.29363]
[1733464087858,2.0916,238.9,238.87,0.29363]
[1733464088060,2.12,238.92,238.87,0.29363]
[1733464088460,2.7148,238.99,238.87,4.45514433]
[1733464088655,11.78061103,238.99,238.87,0.29363]
[1733464088855,2.12,238.98,238.87,0.29363]
[1733464089262,2.12,238.98,238.87,4.56570484]
[1733464089465,2.12,238.98,238.87,0.29363]
[1733464089767,2.0912,238.94,238.87,0.29363]
[1733464089962,2.0912,238.94,238.87,4.52047554]
[1733464090163,2.12,238.97,238.87,0.29363]
[1733464090361,3.4806,238.99,238.87,0.29363]
[1733464090563,2.0909,238.98,238.87,0.29363]
[1733464090761,2.0909,238.98,238.87,4.56109815]
[1733464090957,2.0909,238.98,238.88,2.12]
[1733464091164,2.12,238.99,238.88,2.12]
[1733464091866,4.2107,238.99,238.88,2.12]
[1733464092262,2.0908,238.98,238.88,2.12]
[1733464092565,9.06581103,239.02,238.88,2.12]
[1733464092766,3.4252,239.01,238.88,2.12]
[1733464092957,2.0909,238.97,238.87,4.56109815]
[1733464093158,2.12,238.96,238.87,0.29363]
[1733464093360,2.12,238.96,238.87,4.42751942]
[1733464093569,2.0914,238.92,238.87,0.29363]
[1733464094161,2.0915,238.91,238.87,0.29363]
[1733464095057,2.0917,238.89,238.87,0.29363]
[1733464096266,2.12,238.9,238.8,1.2738]
[1733464096468,2.0919,238.86,238.8,1.2738]
[1733464097466,2.12,238.9,238.8,1.2738]
[1733464097662,2.12,238.92,238.8,1.2738]
[1733464099371,2.0917,238.88,238.8,1.2738]
[1733464099573,2.12,238.92,238.8,1.2738]
[1733464100266,2.0918,238.87,238.8,1.2738]
[1733464101174,9.06581103,238.91,238.77,2.57047]
[1733464101370,9.06581103,238.88,238.77,2.57047]
[1733464102471,2.1,238.9,238.77,2.57047]
[1733464102671,2.1,238.89,238.77,2.57047]
[1733464103076,2.1,238.89,238.77,2.55047]
[1733464103672,2.0919,238.87,238.77,2.55047]
[1733464105073,2.0919,238.86,238.77,2.55047]
[1733464108577,2.1,238.9,238.77,2.55047]
[1733464110680,2.0919,238.86,238.77,2.55047]
[1733464112177,2.1,238.9,238.77,2.55047]
[1733464112378,2.0918,238.88,238.77,2.55047]
[1733464112676,2.1,238.9,238.77,2.55047]
[1733464112982,2.1,238.9,238.77,2.1]
[1733464113871,9.06581103,238.89,238.77,2.1]
[1733464114479,2.0921,238.83,238.77,2.1]
[1733464115070,9.06581103,238.89,238.77,2.1]
[1733464115071,2.0922,238.82,238.77,2.1]
[1733464115281,9.06581103,238.89,238.77,2.1]
[1733464116382,2.0921,238.84,238.77,2.1]
[1733464116881,2.0919,238.86,238.77,2.1]
[1733464117084,9.06581103,238.89,238.77,2.1]
[1733464117676,2.0921,238.84,238.77,2.1]
[1733464118780,9.06581103,238.89,238.77,2.1]
[1733464119185,9.06581103,238.86,238.73,2.1]
[1733464119385,2.0923,238.82,238.73,2.1]
[1733464119582,2.1,238.85,238.72,5.58812306]
[1733464120383,2.0924,238.8,238.72,5.58812306]
[1733464120582,9.06581103,238.83,238.72,5.58812306]
[1733464121081,9.06581103,238.83,238.67,9.60130103]
[1733464121082,9.06581103,238.8,238.67,0.53549]
[1733464121283,9.06581103,238.77,238.67,0.53549]
[1733464121587,2.0928,238.76,238.7,2.0933]
[1733464121784,9.06581103,238.8,238.71,4.10357158]
[1733464121983,1.2956,238.82,238.7,9.06581103]
[1733464122180,2.1,238.85,238.73,9.06581103]
[1733464122385,2.1,238.85,238.74,2.1]
[1733464122580,2.1,238.85,238.75,4.28870771]
[1733464123285,2.0922,238.83,238.76,2.0927]
[1733464123484,2.1,238.85,238.77,4.18441156]
[1733464123785,2.1,238.85,238.71,2.1]
[1733464123983,9.06581103,238.82,238.71,2.1]
[1733464124389,9.06581103,238.82,238.67,2.63549]
[1733464124586,9.06581103,238.82,238.68,1.0473005]
[1733464124788,9.06581103,238.82,238.69,1.0473005]
[1733464124986,2.0928,238.76,238.67,2.63549]
[1733464125188,2.0928,238.76,238.68,1.04731058]
[1733464125388,2.1,238.79,238.69,1.04731058]
[1733464125590,2.1,238.79,238.71,2.0932]
[1733464126091,2.0927,238.76,238.71,2.0932]
[1733464126882,2.093,238.74,238.67,2.63549]
[1733464127083,9.06581103,238.78,238.67,2.63549]
[1733464127084,11.62471103,238.78,238.67,2.63549]
[1733464127486,2.0928,238.76,238.67,2.63549]
[1733464128091,2.0928,238.76,238.71,2.0932]
[1733464128396,2.0928,238.76,238.67,2.63549]
[1733464128798,2.0928,238.76,238.7,2.0933]
[1733464129702,11.62471103,238.78,238.67,2.63549]
[1733464129899,2.0927,238.77,238.72,2.0931]
[1733464130198,2.1,238.85,238.72,2.1]
[1733464131595,2.0922,238.82,238.76,2.0927]
[1733464131899,2.1,238.85,238.72,2.1]
[1733464132297,2.0923,238.81,238.76,2.0927]
[1733464132492,9.06581103,238.82,238.67,2.1]
[1733464132798,9.06581103,238.82,238.7,2.0932]
[1733464133195,2.0925,238.79,238.7,2.0932]
[1733464133400,2.0925,238.79,238.67,2.1]
[1733464133401,2.1,238.79,238.67,2.1]
[1733464133800,2.1,238.79,238.68,2.1]
[1733464133801,2.0927,238.78,238.68,2.1]
[1733464133995,9.06581103,238.82,238.76,2.0927]
[1733464134198,2.1,238.82,238.75,4.21066792]
[1733464134400,2.1,238.82,238.73,2.1]
[1733464134705,2.1,238.82,238.73,6.24280122]
[1733464135398,2.1,238.82,238.77,2.0926]
[1733464135399,4.1922,238.82,238.77,2.0926]
[1733464135598,2.515,238.88,238.74,9.06581103]
[1733464135798,2.1,238.87,238.74,9.06581103]
[1733464135993,2.1,238.87,238.79,2.0924]
[1733464136602,2.0919,238.86,238.73,6.24280122]
[1733464136801,4.615,238.88,238.73,6.24280122]
[1733464137299,1.2668,238.88,238.74,1.04697672]
[1733464137600,1.2668,238.88,238.75,2.28717672]
[1733464137801,1.2668,238.88,238.75,1.2402]
[1733464138200,2.0915,238.9,238.84,2.092]
[1733464139498,2.0914,238.92,238.86,2.0918]
[1733464139702,2.1,238.93,238.83,4.18580405]
[1733464140003,2.0915,238.9,238.84,2.092]
[1733464140206,2.0915,238.9,238.84,6.3108387]
[1733464141704,9.06581103,238.85,238.62,9.06581103]
[1733464141903,9.06581103,238.81,238.73,4.18953248]
[1733464142601,9.06581103,238.81,238.7,2.1]
[1733464143202,9.06581103,238.81,238.7,6.34437697]
[1733464143403,9.06581103,238.81,238.7,2.1]
[1733464144000,9.06581103,238.81,238.7,6.35771207]
[1733464144203,9.06581103,238.81,238.65,1.2871]
[1733464144204,9.06581103,238.77,238.56,43.56]
[1733464144497,9.06581103,238.77,238.63,2.1]
[1733464144702,11.16581103,238.77,238.64,1.04732273]
[1733464144902,11.16581103,238.77,238.65,1.04732273]
[1733464145097,11.16581103,238.77,238.63,2.1]
[1733464145098,11.16581103,238.81,238.66,1.04733701]
[1733464145297,9.06581103,238.81,238.67,1.04733212]
[1733464145506,9.06581103,238.81,238.68,3.14733212]
[1733464145707,9.06581103,238.81,238.69,1.04726449]
[1733464146003,9.06581103,238.81,238.68,2.1]
[1733464146209,4.1923,238.82,238.74,2.0929]
[1733464146404,4.1923,238.82,238.74,6.37442711]
[1733464146602,4.1923,238.82,238.74,2.0929]
[1733464146900,2.0923,238.81,238.74,2.0929]
[1733464149704,2.0924,238.8,238.74,2.0929]
[1733464150701,2.1,238.82,238.76,2.0927]
[1733464151000,2.1,238.82,238.69,1.3258]
[1733464151307,2.1,238.82,238.7,1.04709436]
[1733464151511,2.1,238.82,238.71,1.04709436]
[1733464151699,2.1,238.82,238.72,1.04709436]
[1733464151899,2.1,238.86,238.73,2.1]
[1733464152305,2.1,238.86,238.74,1.3186]
[1733464153608,2.0921,238.84,238.78,2.0925]
[1733464153808,2.0921,238.84,238.79,4.15624422]
[1733464154209,2.092,238.85,238.79,6.24874422]
[1733464154613,2.1,238.86,238.74,1.3186]
[1733464154815,2.0921,238.84,238.77,2.0926]
[1733464155014,2.1,238.86,238.77,6.21785248]
[1733464155314,2.1,238.86,238.77,2.0926]
[1733464155511,2.0925,238.79,238.72,2.093]
[1733464155711,9.06581103,238.83,238.7,5.33607314]
[1733464156614,2.0924,238.8,238.74,2.0929]
[1733464156815,9.06581103,238.83,238.74,2.0929]
[1733464157615,2.0925,238.79,238.73,2.093]
[1733464157814,2.0925,238.79,238.7,5.33607314]
[1733464158319,2.0925,238.79,238.74,2.0929]
[1733464158510,2.0925,238.79,238.7,5.33607314]
[1733464158718,9.06581103,238.83,238.7,5.33607314]
[1733464158719,2.0926,238.78,238.7,5.33607314]
[1733464159222,2.0926,238.78,238.73,2.093]
[1733464159619,2.0926,238.78,238.7,5.33607314]
[1733464159620,9.06581103,238.79,238.7,1.2464]
[1733464159817,2.0928,238.76,238.71,2.0931]
[1733464160021,5.82319623,238.75,238.71,2.0931]
[1733464160217,5.82319623,238.75,238.71,6.27349817]
[1733464160424,5.82319623,238.75,238.71,2.0931]
[1733464160715,7.91599623,238.75,238.7,2.0932]
[1733464160921,7.91599623,238.75,238.71,4.1238497]
[1733464162224,5.82319623,238.75,238.71,6.2170497]
[1733464162523,5.82319623,238.75,238.71,2.0932]
[1733464162723,5.82319623,238.75,238.71,6.26909776]
[1733464164117,2.1,238.81,238.71,4.17589776]
[1733464164321,2.1,238.81,238.72,2.0931]
[1733464164322,5.82319623,238.76,238.72,2.0931]
[1733464164525,5.82319623,238.76,238.71,4.28020095]
[1733464164724,2.0927,238.77,238.68,7.14529623]
[1733464164924,2.1,238.81,238.68,7.14529623]
[1733464164925,5.82319623,238.76,238.68,7.14529623]
[1733464166222,5.82319623,238.76,238.71,2.0931]
[1733464166423,5.82319623,238.74,238.7,4.23430551]
[1733464166623,5.82319623,238.74,238.68,1.3221]
[1733464167620,5.82319623,238.74,238.7,2.0932]
[1733464167817,5.82319623,238.74,238.7,6.26047386]
[1733464168825,2.2,238.79,238.7,4.16727386]
[1733464169029,5.82319623,238.78,238.69,5.82319623]
[1733464169229,7.91579623,238.78,238.71,2.0931]
[1733464169430,7.91579623,238.78,238.72,4.27158335]
[1733464169726,2.0927,238.77,238.72,2.0931]
[1733464169931,2.0927,238.77,238.72,6.26288922]
[1733464170226,5.82319623,238.76,238.66,8.02319623]
[1733464170424,7.91599623,238.76,238.71,2.0932]
[1733464170826,5.82319623,238.76,238.7,4.1182638]
[1733464171026,5.82319623,238.76,238.66,8.02319623]
[1733464171424,7.91599623,238.76,238.7,2.0932]
[1733464171626,5.82319623,238.76,238.7,6.26675937]
[1733464171837,5.82319623,238.72,238.64,0.58783]
[1733464172126,7.91659623,238.69,238.64,2.68163]
[1733464172525,5.82319623,238.69,238.64,4.73603772]
[1733464172732,5.82319623,238.71,238.64,0.58783]
[1733464173127,5.82319623,238.71,238.67,2.0935]
[1733464174330,2.2,238.74,238.69,2.0933]
[1733464174634,2.2,238.74,238.65,2.2]
[1733464174635,5.82319623,238.74,238.65,2.2]
[1733464174927,5.82319623,238.74,238.65,6.29163554]
[1733464175133,5.82319623,238.74,238.65,2.2]
[1733464175334,5.82319623,238.74,238.71,2.0932]
[1733464175933,5.82319623,238.74,238.7,2.0933]
[1733464176628,2.0929,238.75,238.7,2.0933]
[1733464178833,5.82319623,238.76,238.7,2.0933]
[1733464179035,2.0929,238.74,238.66,9.98352238]
[1733464179234,2.0929,238.74,238.69,2.0933]
[1733464180027,2.0929,238.74,238.66,9.98352238]
[1733464180641,7.91599623,238.76,238.71,2.0932]
[1733464180938,5.82319623,238.76,238.66,9.98352238]
[1733464181137,2.0929,238.75,238.7,2.0932]
[1733464181430,5.82319623,238.76,238.66,9.98352238]
[1733464181629,5.82319623,238.78,238.74,2.0928]
[1733464181830,1.2866,238.85,238.66,4.16032615]
[1733464181831,2.6168,238.85,238.72,5.82319623]
[1733464182033,5.82319623,238.82,238.72,5.82319623]
[1733464182230,7.91539623,238.82,238.72,5.82319623]
[1733464182739,5.82319623,238.82,238.74,5.82319623]
[1733464183637,7.91539623,238.82,238.77,2.0926]
[1733464183840,7.91539623,238.82,238.77,6.23013347]
[1733464184131,7.91539623,238.82,238.77,2.0926]
[1733464184431,5.82319623,238.8,238.76,4.2037206]
[1733464184637,2.0927,238.77,238.71,3.3437]
[1733464185028,2.0927,238.77,238.72,4.28415053]
[1733464185432,2.0927,238.77,238.72,6.37725053]
[1733464187137,5.82319623,238.78,238.73,2.093]
[1733464187733,2.0924,238.8,238.74,4.14211106]
[1733464187938,2.2,238.81,238.73,5.82319623]
[1733464188141,5.82319623,238.82,238.73,10.05242146]
[1733464188433,7.91549623,238.82,238.73,10.05242146]
[1733464188936,5.82319623,238.83,238.73,10.05242146]
[1733464189139,5.82319623,238.83,238.74,2.2]
[1733464190031,3.9759,238.99,238.77,5.82319623]
[1733464190235,5.82319623,238.86,238.77,5.82319623]
[1733464191640,5.82319623,238.84,238.8,2.0923]
[1733464191836,2.12,238.9,238.76,2.12]
[1733464191837,5.82319623,238.82,238.76,2.12]
[1733464192533,5.82319623,238.82,238.74,2.12]
[1733464193432,5.82319623,238.82,238.73,10.05242146]
[1733464193636,5.82319623,238.82,238.74,2.12]
[1733464194337,5.82319623,238.78,238.69,2.12]
[1733464194844,2.0927,238.77,238.72,2.0931]
[1733464195043,5.82319623,238.76,238.72,6.27234815]
[1733464195239,5.82319623,238.76,238.72,2.0931]
[1733464195744,5.82319623,238.76,238.72,6.18981889]
[1733464195946,5.82319623,238.76,238.69,2.12]
[1733464196846,2.0927,238.77,238.69,2.12]
[1733464197645,2.0927,238.77,238.71,2.0932]
[1733464197940,2.0927,238.77,238.72,4.28649429]
[1733464198545,2.0927,238.77,238.72,6.37959429]
[1733464198742,2.0927,238.77,238.72,2.0931]
[1733464199446,2.0927,238.77,238.72,6.20741396]
[1733464200750,5.82319623,238.76,238.64,0.57474]
[1733464201045,5.82319623,238.74,238.7,2.0933]
[1733464201443,7.91609623,238.74,238.69,2.0933]
[1733464201646,5.82319623,238.74,238.66,9.26229623]
[1733464202045,5.82319623,238.72,238.64,0.57474]
[1733464202244,5.82319623,238.74,238.65,5.82319623]
[1733464202449,2.12,238.75,238.65,5.82319623]
[1733464202649,7.94319623,238.75,238.65,5.82319623]
[1733464203045,2.093,238.74,238.69,2.0934]
[1733464203350,2.093,238.74,238.69,6.26133703]
[1733464203750,2.093,238.74,238.69,4.16793703]
[1733464204058,2.0933,238.71,238.64,6.39793623]
[1733464204247,5.82319623,238.73,238.65,2.0937]
[1733464204455,5.82319623,238.73,238.66,4.29361611]
[1733464204654,2.0933,238.71,238.66,4.29361611]
[1733464205254,2.0933,238.7,238.65,2.0937]
[1733464209359,5.82319623,238.73,238.64,6.39793623]
[1733464209562,2.0932,238.72,238.66,2.0936]
[1733464209765,2.0932,238.72,238.66,6.34931911]
[1733464210157,2.0932,238.72,238.66,4.25571911]
[1733464210363,2.0936,238.67,238.64,0.57474]
[1733464211061,2.12,238.75,238.64,0.57474]
[1733464211266,7.91639623,238.71,238.66,2.0936]
[1733464211465,7.91639623,238.71,238.66,6.19931937]
[1733464212166,1.2686,238.78,238.69,5.82319623]
[1733464212357,1.2858,238.79,238.71,5.82319623]
[1733464212760,2.0927,238.77,238.72,2.0931]
[1733464213157,3.3783,238.79,238.73,2.093]
[1733464213666,1.2858,238.79,238.73,2.093]
[1733464214166,1.2858,238.79,238.73,4.10325807]
[1733464214362,1.2858,238.79,238.7,5.82319623]
[1733464214559,2.0926,238.78,238.71,5.82319623]
[1733464214764,2.0926,238.78,238.72,4.25530816]
[1733464215267,5.82319623,238.78,238.66,6.22571937]
[1733464215470,5.82319623,238.78,238.69,5.82319623]
[1733464216368,2.0927,238.77,238.71,2.0932]
[1733464216669,2.093,238.73,238.66,6.19921937]
[1733464216860,1.2858,238.79,238.67,5.82319623]
[1733464217064,16.19727465,238.78,238.69,5.82319623]
[1733464217264,5.82319623,238.7,238.61,0.64019]
[1733464217469,7.94319623,238.7,238.61,0.64019]
[1733464217665,2.12,238.7,238.61,0.64019]
[1733464217872,2.12,238.7,238.62,7.91709623]
[1733464218063,5.82319623,238.72,238.64,5.82319623]
[1733464218373,5.82319623,238.72,238.65,6.31283939]
[1733464218669,2.12,238.74,238.64,5.82319623]
[1733464218973,2.0929,238.75,238.69,2.0933]
[1733464219165,7.94319623,238.78,238.69,4.19315482]
[1733464219362,10.37160113,238.77,238.67,5.82319623]
[1733464219566,7.94319623,238.78,238.67,5.82319623]
[1733464219870,7.94319623,238.78,238.67,9.95264695]
[1733464220461,7.94319623,238.78,238.69,2.0933]
[1733464221170,7.94319623,238.78,238.69,5.82319623]
[1733464221171,10.03579623,238.78,238.69,5.82319623]
[1733464221769,7.91579623,238.78,238.69,7.92319623]
[1733464222468,2.0927,238.77,238.71,2.0932]
[1733464222870,2.0927,238.77,238.69,7.92319623]
[1733464223070,2.0928,238.76,238.69,10.01649623]
[1733464223566,5.82319623,238.78,238.69,7.92319623]
[1733464223772,5.82319623,238.78,238.71,2.0932]
[1733464224771,2.0927,238.77,238.71,2.0932]
[1733464226170,2.0927,238.77,238.72,2.0931]
[1733464226376,2.0927,238.77,238.69,7.92319623]
[1733464226772,2.1,238.8,238.74,2.0929]
[1733464227472,2.1,238.8,238.74,6.18323949]
[1733464227668,7.91569623,238.79,238.71,5.82319623]
[1733464228774,7.91599623,238.76,238.69,2.1]
[1733464229181,5.82319623,238.76,238.71,2.0931]
[1733464230078,2.0928,238.75,238.69,2.1]
[1733464230279,5.82319623,238.76,238.69,2.1]
[1733464230979,5.82319623,238.79,238.69,7.92319623]
[1733464231479,5.82319623,238.79,238.75,2.0928]
[1733464232078,5.82319623,238.79,238.74,4.24250662]
[1733464232276,7.91569623,238.79,238.69,7.92319623]
[1733464232977,7.91569623,238.79,238.71,5.82319623]
[1733464233780,2.5095,238.89,238.73,5.82319623]
[1733464233977,5.82319623,238.82,238.74,2.1]
[1733464235677,2.0923,238.81,238.77,2.0926]
[1733464236280,2.0923,238.81,238.76,2.0927]
[1733464236480,2.5095,238.89,238.74,2.1]
[1733464236782,5.82319623,238.8,238.73,6.36824369]
[1733464236977,5.82319623,238.78,238.73,4.27524369]
[1733464237181,5.82319623,238.78,238.71,2.1]
[1733464237883,7.91559623,238.8,238.75,2.0928]
[1733464239075,5.82319623,238.8,238.75,2.0928]
[1733464239279,2.0925,238.79,238.74,6.28976854]
[1733464239486,2.0925,238.79,238.74,2.0929]
[1733464240085,2.0925,238.79,238.74,6.25500753]
[1733464241883,5.82319623,238.8,238.74,4.16210753]
[1733464242084,2.0926,238.78,238.73,2.093]
[1733464242294,2.0926,238.78,238.74,4.24532419]
[1733464242482,7.91579623,238.78,238.74,4.24532419]
[1733464242680,2.1,238.83,238.74,4.24532419]
[1733464242884,5.82319623,238.8,238.71,2.1]
[1733464243488,5.82319623,238.8,238.76,2.0927]
[1733464244188,7.91549623,238.81,238.76,2.0927]
[1733464244686,5.82319623,238.81,238.77,2.0926]
[1733464245483,5.82319623,238.81,238.77,6.29160347]
[1733464247283,5.82319623,238.81,238.77,4.19900347]
[1733464247583,7.91549623,238.81,238.76,2.0927]
[1733464247784,2.1,238.83,238.76,4.15425364]
[1733464247983,2.0921,238.83,238.78,2.0925]
[1733464249087,7.91529623,238.83,238.78,2.0925]
[1733464250091,2.0921,238.83,238.78,2.0925]
[1733464250291,2.092,238.85,238.8,2.0924]
[1733464250491,7.91519623,238.85,238.8,2.0924]
[1733464250895,2.5095,238.89,238.76,7.90319623]
[1733464251092,5.82319623,238.85,238.76,7.90319623]
[1733464251291,2.5095,238.89,238.76,7.90319623]
[1733464251494,10.35902684,238.88,238.85,2.0919]
[1733464251698,5.82319623,238.92,238.85,4.12351024]
[1733464251895,5.82319623,238.92,238.82,7.90319623]
[1733464252099,5.82319623,238.92,238.88,2.0917]
[1733464252398,5.82319623,238.92,238.88,4.28893646]
[1733464252694,5.82319623,238.92,238.82,12.11339819]
[1733464252889,5.82319623,238.9,238.82,12.11339819]
[1733464253491,7.91469623,238.9,238.85,2.0919]
[1733464253696,5.82319623,238.9,238.85,2.0919]
[1733464254492,5.82319623,238.9,238.84,2.08]
[1733464254697,2.0916,238.89,238.84,2.08]
[1733464254895,5.82319623,238.86,238.57,5.81455679]
[1733464255096,5.82319623,238.86,238.54,4.1893]
[1733464255097,5.82319623,238.84,238.77,2.0926]
[1733464255398,5.82319623,238.84,238.76,4.08510506]
[1733464255605,5.82319623,238.84,238.79,2.0925]
[1733464255798,2.092,238.85,238.79,6.3743868]
[1733464256004,2.08,238.9,238.78,2.08]
[1733464256201,5.82319623,238.87,238.78,6.28024331]
[1733464256395,5.82319623,238.87,238.79,5.82319623]
[1733464256600,5.82319623,238.87,238.79,10.09718592]
[1733464256794,7.91499623,238.87,238.82,2.0922]
[1733464256996,7.91499623,238.87,238.79,10.09718592]
[1733464258204,7.91499623,238.87,238.82,2.0922]
[1733464258908,7.91499623,238.87,238.79,10.09718592]
[1733464259508,7.91499623,238.87,238.8,2.08]
[1733464259710,2.0919,238.86,238.8,2.0924]
[1733464260309,2.0921,238.84,238.79,8.44648969]
[1733464260703,5.82319623,238.85,238.78,2.08]
[1733464260908,2.08,238.9,238.79,4.13269027]
[1733464261111,5.82319623,238.84,238.78,2.08]
[1733464261409,2.0923,238.81,238.78,2.08]
[1733464262110,5.82319623,238.87,238.79,5.82319623]
[1733464262411,5.82319623,238.9,238.79,5.82319623]
[1733464262607,5.82319623,238.9,238.79,7.13619623]
[1733464263202,5.82319623,238.9,238.83,2.0921]
[1733464263408,5.82319623,238.9,238.83,6.25954862]
[1733464263814,1.3308,238.96,238.85,2.0919]
[1733464264011,1.3308,238.96,238.83,6.24744862]
[1733464264012,5.82319623,238.92,238.83,7.90319623]
[1733464264213,5.82319623,238.92,238.83,12.16946108]
[1733464264410,7.91459623,238.92,238.85,2.0919]
[1733464264608,7.91459623,238.92,238.83,12.16946108]
[1733464265012,7.91459623,238.92,238.86,2.0919]
[1733464265808,2.0918,238.87,238.83,6.34626485]
[1733464266012,5.82319623,238.9,238.83,6.34626485]
[1733464266706,2.0917,238.88,238.83,2.08]
[1733464266907,2.0917,238.88,238.83,6.26970856]
[1733464267312,2.0917,238.88,238.83,8.36180856]
[1733464268214,7.91479623,238.9,238.83,8.36180856]
[1733464268514,5.82319623,238.9,238.84,2.092]